Cogmind - Beta 14 @@@ ROGUE MODE // 2024.09.06 @ 12:07:47 Player: rice Result: Self-destructed Performance ------------- Evolutions (1) 500 Regions Visited (3) 600 Robots Destroyed (17) 85 Value Destroyed (399) 399 Prototype IDs (0) 0 Alien Tech Used (0) 0 Bonus (0) 0 TOTAL SCORE: 1584 Bonus ------- None Cogmind --------- Core Integrity 350/400 Matter 300/300 Energy 100/100 System Corruption 0% Temperature Cool (0) Movement Treading (160) Location -9/Materials Parts ------- > --- POWER (1) -------- (None) > --- PROPULSION (2) --- Light Treads Light Treads > --- UTILITY (4) ------ Thermal Generator Small Storage Unit Medium Storage Unit Targeting Computer > --- WEAPON (2) ------- Bore Cannon > --- INVENTORY (10) --- Ion Engine Ion Engine Huge Storage Unit Structural Scanner Assault Rifle Grenade Launcher Peak State ------------ > --- POWER ------------ Light Nuclear Core > --- PROPULSION ------- Light Treads Light Treads > --- UTILITY ---------- Thermal Generator Small Storage Unit Medium Storage Unit Sensor Array > --- WEAPON ----------- Small Laser Bore Cannon > --- INVENTORY -------- Ion Engine Ion Engine Huge Storage Unit Structural Scanner Assault Rifle Grenade Launcher [Rating: 17] Favorites ----------- Power Ion Engine Engine Ion Engine Power Core Light Nuclear Core Propulsion Light Treads Treads Light Treads Utility Small Storage Unit Device Sensor Array Storage Small Storage Unit Processor Targeting Computer Weapon Small Laser Energy Gun Small Laser Ballistic Gun Assault Rifle Ballistic Cannon Bore Cannon Build | -11 -10 -10 -9 ------- Run | Yrd Mat Min Mat Slots Evolved 2 | . . . 2 Power . | . . . . Propulsion . | . . . . Utility 2 | . . . 2 Weapon . | . . . . Parts Attached 18 | 6 6 1 5 Power 2 | 1 . . 1 Engine 1 | 1 . . . Core 1 | . . . 1 Reactor . | . . . . Propulsion 2 | 2 . . . Treads 2 | 2 . . . Leg . | . . . . Wheel . | . . . . Hover . | . . . . Flight . | . . . . Utility 9 | 1 4 . 4 Device 3 | . 2 . 1 Storage 5 | 1 2 . 2 Processor 1 | . . . 1 Hackware . | . . . . Protection . | . . . . Artifact . | . . . . Weapon 5 | 2 2 1 . Energy Gun 3 | 2 1 . . Energy Cannon . | . . . . Ballistic Gun 1 | . 1 . . Ballistic Cannon 1 | . . 1 . Launcher . | . . . . Special Weapon . | . . . . Impact Weapon . | . . . . Slashing Weapon . | . . . . Piercing Weapon . | . . . . Special Melee Weapon . | . . . . Unidentified Prototypes . | . . . . Parts Lost 2 | . . . 2 Power 1 | . . . 1 Propulsion . | . . . . Utility . | . . . . Weapon 1 | . . . 1 Highest Loss Streak 1 | . . . 1 To Critical Strikes . | . . . . Average Slot Usage (%) 94 | . 91 100 91 Engine 9 | . 14 14 1 Core 2 | . . . 7 Treads 25 | . 28 28 22 Device 13 | . 6 14 18 Storage 15 | . 14 14 17 Energy Gun 13 | . 17 14 11 Ballistic Gun 4 | . 10 4 . Ballistic Cannon 7 | . . 9 11 Peak Build Rating 17 | 6 7 11 17 Average Rating 10 | 4 6 9 15 On Entrance 6 | . 6 7 11 Naked Turns . | . . . . Heaviest Build 38 | 14 14 21 38 Greatest Support 40 | 40 40 40 40 Greatest Overweight (x) . | . . . . Average Overweight (x) . | . . . . Largest Inventory Capacity 25 | 8 25 8 25 Average Capacity 8 | 6 8 8 9 Most Carried 7 | 2 4 5 7 Average Carried 4 | . 2 4 5 Final Capacity 10 | 8 8 8 10 Final Carried 6 | 2 4 5 6 Class Distribution -------------------- 100% | Mutant Dominant Class ---------------- Mutant | -10/Materials Mutant | -10/Mines Mutant | -9/Materials Resources | -11 -10 -10 -9 ----------- Run | Yrd Mat Min Mat Matter Collected 656 | 162 122 61 311 Remotely . | . . . . Salvage Created 499 | . 122 . 377 Parts 37 | . 9 . 28 Haulers Intercepted . | . . . . Recyclers Shooed . | . . . . Parts Field Recycled . | . . . . Retrieved Matter . | . . . . Parts Self-Destructed . | . . . . Prevented . | . . . . Kills | -11 -10 -10 -9 ------- Run | Yrd Mat Min Mat Combat Hostiles Destroyed 14 | . 2 . 12 Guns 8 | . 2 . 6 Cannons 5 | . . . 5 AOE 1 | . . . 1 Classes Destroyed 6 | . 2 . 4 Worker 1 | . . . 1 Carrier 1 | . . . 1 Watcher 1 | . 1 . . Swarmer 7 | . . . 7 Grunt 6 | . 2 . 4 Sentry 1 | . . . 1 Best Kill Streak 6 | . 2 . 6 Combat Bots Only 5 | . 2 . 5 Max Kills in Single Turn 2 | . 1 . 2 Gunslinging . | . . . . Exploded 1 | . . . 1 Melee . | . . . . Uniques/NPCs Destroyed . | . . . . Combat | -11 -10 -10 -9 -------- Run | Yrd Mat Min Mat Hostile Shots Fired 82 | . 17 . 65 Missed 20 | . 5 . 15 Damage Taken 619 | . 154 . 465 Core 85 | . 35 . 50 Absorbed by Shields . | . . . . Core Remaining (%) 93 | 100 . 86 . Volleys Fired 50 | . 12 . 38 Largest 2 | . 2 . 2 Hottest 97 | . 80 . 97 Shots Fired 98 | . 24 . 74 Gun 60 | . 24 . 36 Cannon 38 | . . . 38 Launcher . | . . . . Special . | . . . . Kinetic 43 | . 5 . 38 Thermal 41 | . 5 . 36 Explosive . | . . . . Electromagnetic 14 | . 14 . . Robot Hit Streak 8 | . 8 . 7 Robot Miss Streak 4 | . 2 . 4 Penetration Max . | . . . . Secondary Targets 1 | . 1 . . Max Gunslinging Chain 1 | . 1 . . Shots Hit Robots 42 | . 16 . 26 Core Hits 23 | . 7 . 16 Critical Kills 3 | . . . 3 Critical Parts Destroyed 5 | . . . 5 Critical Strikes 8 | . . . 8 Destroy 8 | . . . 8 Melee Attacks . | . . . . Impact . | . . . . Slashing . | . . . . Piercing . | . . . . Sneak Attacks . | . . . . Combat Hostiles . | . . . . Follow-up Attacks . | . . . . Damage Inflicted 626 | . 194 . 432 Guns 370 | . 194 . 176 Cannons 233 | . . . 233 Explosions 23 | . . . 23 Melee . | . . . . Ramming . | . . . . Kinetic 277 | . 44 . 233 Thermal 206 | . 30 . 176 Explosive 23 | . . . 23 Electromagnetic 120 | . 120 . . Impact . | . . . . Slashing . | . . . . Piercing . | . . . . Highest Corruption . | . . . . Average Corruption . | . . . . Corruption Purged . | . . . . Corruption Blocked . | . . . . Overload Shots . | . . . . Overflow Damage 15 | . . . 15 Projectiles 15 | . . . 15 Explosions . | . . . . Melee . | . . . . Knockbacks . | . . . . Impact . | . . . . Kinetic . | . . . . Secondary . | . . . . Self-Inflicted Damage . | . . . . Shots . | . . . . Rammed . | . . . . Targets Rammed . | . . . . Kicked . | . . . . Crushed . | . . . . Highest Temperature 198 | . 111 . 198 Average Temperature 68 | . 58 . 70 Received Heat Transfer 183 | . 111 . 72 Siege Activations . | . . . . Robots Corrupted . | . . . . Combat Hostiles . | . . . . Parts Fried . | . . . . Impact Corruptions . | . . . . Robots Melted . | . . . . Combat Hostiles . | . . . . Parts Melted . | . . . . Heat Transferred 475 | . 75 . 400 Parts Sabotaged . | . . . . Parts Stolen . | . . . . Parts Stripped . | . . . . Power Chain Reactions . | . . . . Alert | -11 -10 -10 -9 ------- Run | Yrd Mat Min Mat Peak Influence 287 | . 103 . 287 Initial . | . . . . Average 60 | . 50 . 135 Maximum Alert Level 1 | . . . 1 Low Security (%) 89 | 100 100 100 70 Level 1 10 | . . . 29 Level 2 . | . . . . Level 3 . | . . . . Level 4 . | . . . . Level 5 . | . . . . High Security . | . . . . Max Security . | . . . . Squads Dispatched 3 | . 1 . 2 Investigation . | . . . . Extermination . | . . . . Reinforcement 3 | . 1 . 2 Assault . | . . . . Garrison . | . . . . Intercept . | . . . . Searches Triggered . | . . . . Construction Impeded . | . . . . Haulers Reinforced . | . . . . Active Scanning Responses . | . . . . Cargo Convoy Interrupts . | . . . . Stealth | -11 -10 -10 -9 --------- Run | Yrd Mat Min Mat Distress Signals 2 | . 1 . 1 Communications Jammed . | . . . . Distress Signals . | . . . . Times Spotted 25 | . 6 . 19 Peak Tracking Total 5 | . 2 . 5 Tactical Retreats 4 | . 1 . 3 Traps | -11 -10 -10 -9 ------- Run | Yrd Mat Min Mat Traps Triggered . | . . . . Indirectly . | . . . . Trap Hack Attempts . | . . . . Triggered . | . . . . Disarmed . | . . . . Reprogrammed . | . . . . Reused . | . . . . Traps Extracted . | . . . . Installed . | . . . . Triggered . | . . . . Machines | -11 -10 -10 -9 ---------- Run | Yrd Mat Min Mat Machines Disabled 2 | . . . 2 Max in Single Turn 2 | . . . 2 Machines Repaired . | . . . . Machines Dismantled . | . . . . Machines Sabotaged . | . . . . Overloaded Fab Kills . | . . . . Hacking | -11 -10 -10 -9 --------- Run | Yrd Mat Min Mat Machines Accessed 2 | . 1 . 1 Terminals 2 | . 1 . 1 Fabricators . | . . . . Repair Stations . | . . . . Recycling Units . | . . . . Scanalyzers . | . . . . Garrison Access . | . . . . Total Hacks 4 | . 2 . 2 Successful 2 | . . . 2 Failed 2 | . 2 . . Catastrophic . | . . . . Database Lockouts . | . . . . Manual . | . . . . Terminals 4 | . 2 . 2 Fabricators . | . . . . Repair Stations . | . . . . Recycling Units . | . . . . Scanalyzers . | . . . . Garrison Access . | . . . . Terminal Hacks 2 | . . . 2 Record 1 | . . . 1 Zone Layout 1 | . . . 1 Fabricator Hacks . | . . . . Repair Station Hacks . | . . . . Recycling Unit Hacks . | . . . . Scanalyzer . | . . . . Garrison Access Hacks . | . . . . Unauthorized Hacks . | . . . . Terminals . | . . . . Fabricators . | . . . . Repair Stations . | . . . . Recycling Units . | . . . . Scanalyzers . | . . . . Garrison Access . | . . . . Data Cores Recovered . | . . . . Used . | . . . . Hacking Detections 1 | . . . 1 Full Trace Events . | . . . . Feedback Events . | . . . . Feedback Blocked . | . . . . Robot Schematics Acquired . | . . . . Robots Built . | . . . . Authchips . | . . . . Time . | . . . . Total Robot Build Rating . | . . . . Part Schematics Acquired . | . . . . Parts Built . | . . . . Authchips . | . . . . Time . | . . . . Total Part Build Rating . | . . . . Parts Repaired . | . . . . Time . | . . . . Parts Recycled . | . . . . Recycled Matter . | . . . . Retrieved Matter . | . . . . Retrieved Components . | . . . . Parts Scanalyzed . | . . . . Part Schematics Acquired . | . . . . Parts Damaged . | . . . . Bothacking | -11 -10 -10 -9 ------------ Run | Yrd Mat Min Mat Used RIF Installer . | . . . . Robots Hacked . | . . . . Non-combat . | . . . . Combat . | . . . . Robot Hacks Applied . | . . . . Relay Couplers Released . | . . . . Fabnet Peak Effective % . | . . . . Robots Rewired . | . . . . Allies Hacked . | . . . . Hacks Repelled . | . . . . Allies | -11 -10 -10 -9 -------- Run | Yrd Mat Min Mat Total Allies . | . . . . Largest Group . | . . . . Highest-Rated Group . | . . . . Highest-Rated Ally . | . . . . Total Orders . | . . . . Ally Attacks . | . . . . Total Damage . | . . . . Kills . | . . . . Allies Corrupted . | . . . . Allies Melted . | . . . . Intel | -11 -10 -10 -9 ------- Run | Yrd Mat Min Mat Robot Analysis Total . | . . . . Derelict Logs Recovered 1 | . . 1 . Drone Launches . | . . . . Drone Recoveries . | . . . . Exploration | -11 -10 -10 -9 ------------- Run | Yrd Mat Min Mat Turns Passed 1538 | 112 414 480 532 Spaces Moved 846 | 66 227 299 254 Core 5 | 5 . . . Treads 841 | 61 227 299 254 Legs . | . . . . Wheels . | . . . . Hover . | . . . . Flight . | . . . . Fastest Speed 50 | 50 160 160 160 Average Speed 159 | 151 160 160 160 Slowest Speed 160 | 160 160 160 160 Overloaded Moves . | . . . . Propulsion Burnouts . | . . . . Robots Hopped . | . . . . Cave-ins Triggered . | . . . . Exploration Rate (%) 35 | 6 36 74 25 Regions Visited 3 Branch Regions 1 Pre-discovered Areas 1 | . . 1 . Known Exits Taken . | . . . . Unknown Exits Taken 3 | 1 1 1 . Scrap Searched 1 | . . 1 . Spaces Dug 7 | . . . 7 Terrain Destroyed 45 | . . . 45 Melee . | . . . . Projectile 23 | . . . 23 AOE 22 | . . . 22 Terrain Rammed . | . . . . Walls Destroyed . | . . . . Machines Disabled . | . . . . Actions | -11 -10 -10 -9 --------- Run | Yrd Mat Min Mat Total 934 | 75 254 300 305 Wait 9 | 2 3 . 4 Move 843 | 65 226 298 254 Hop . | . . . . Pick Up 8 | 2 3 1 2 Fast Attach 10 | 6 2 . 2 Attach 4 | . 2 . 2 Detach 3 | . 2 . 1 Swap 4 | . 2 1 1 Drop 3 | . 2 . 1 Fire 50 | . 12 . 38 Melee . | . . . . Ram . | . . . . Kick . | . . . . Crush . | . . . . Escape Stasis . | . . . . Rewire . | . . . . Trap . | . . . . Miscellaneous . | . . . . Route ------- -11/Scrapyard -10/Materials (discovered 2 exits: *Mat / [*Min]) -10/Mines -9/Materials (discovered 1 exit: [*Mat]) History --------- Turn | Location | Event 9 | -11/Scrapyard | Discovered new exit (range 13) 113 | -11/Scrapyard | Entered Materials 293 | -10/Materials | Discovered new exit (range 11) 317 | -10/Materials | Build established: Mutant 493 | -10/Materials | Discovered new exit (range 7) 527 | -10/Materials | Entered Mines 543 | -10/Mines | Met a Derelict bent on vengeance 675 | -10/Mines | A weapon hastily lodged in a ceiling crevice suddenly fell to the ground 813 | -10/Mines | Discovered new exit (range 14) 868 | -10/Mines | Learned location of Storage (-7) 1007 | -10/Mines | Entered Materials 1007 | -9/Materials | Evolved 2 slots: Utility x2 1490 | -9/Materials | Discovered new exit (range 15) 1539 | -9/Materials | Self-destructed Last Messages --------------- 01463_ HV Slug penetrates G-34 Mercenary. 01466_ G-34 Mercenary suffers critical hit (Destroy). 01466_ G-34 Mercenary destroyed. 01477_ Acquired 29 matter. 01479_ Extracted 100 matter. 01485_ Acquired 36 matter. 01487_ Acquired 3 matter. 01488_ Acquired 7 matter. 01490_ EXIT=FOUND 01490_ K-01 Serf collects debris. 01525_ U-05 Engineer works on Processing Tank. 01525_ K-01 Serf collects debris. 01527_ U-05 Engineer works on Processing Tank. 01528_ K-01 Serf collects debris. 01530_ U-05 Engineer works on Processing Tank. 01531_ K-01 Serf collects debris. 01537_ Sml. Laser destroyed. Map ----- +----------------------------------------------------+ | | | | | | | | | | | | | | | | | | | | | | | | | | | ?????????????????????????????????????????????????? | | ?????????????????????????????????????????????????? | | ?????????????????????????????????????????????????? | | ?????????????????????????????????????????????????? | | ?????????????????????????????????????????????????? | | ?????????????????????????????????????????????????? | | ?????????????????????????????????????????????????? | | ?????????????????????????????????????????????????? | | ?????????????????????#####?######????????????????? | | ?????????????????????# #? #????????????????? | | ?????????????????????# < # """ #????????????????? | | ??????? ########### # """ #????????????????? | | ??????? @ """ #????????????????? | | ??????????????# # #????????????????? | | ??????????????# # #????????????????? | | ??????????????# ########????????????????? | | ???????????#### !!#???????????????????? | | ??????? !!#???????????????????? | | ????????####### [[#???????????????????? | | ??????????????# % [[#???????????????????? | | ??????????????# !!#???????????????????? | | ??????????????# !!#???????????????????? | | ??????????????# #####???????????????????? | | ??????????????# #???????????????????????? | | ??????????????# % #???????????????????????? | | ??????????????# "" #???????????????????????? | | ???????????? ?# *"" #???????????????????????? | | ???????????? # =" #???#???????????????????? | | ????????????? # = #?? ????????????????????? | | ?????????"????#!% ##? ????????????????????? | | ??????####+####%% # ?????????????????????? | | ??????# = ! # ?????????????????????? | | ??????# * = +??????????????????????? | | ??????# #??????????????????????? | | ??????# #### *[ #??????????????????????? | | ??????# ???# *[ #??????????????????????? | | ??????# ???# *[ #??????????????????????? | +----------------------------------------------------+ Best States ------------- Heat Dissipation 28 Energy Generation 14 Energy Capacity 250 Matter Stores 300 Matter Capacity 300 Sight Range 16 Robot Scan Range 14 Terrain Scan Density 10 Evasion (%) 40 Targeting Accuracy 5 Recoil Reduction 2 Item Schematics ----------------- None Robot Schematics ------------------ None Fabricated ------------ Nothing Alien Tech Used ----------------- None Achievements -------------- Preemptive Strike Challenges ------------ None Game ------ Seed MagneticSystemFacilitator Manual? 0 Play Time 00:10:17 Cumulative 11.0 hours Start 2024.09.06 @ 09:29:18 End 2024.09.06 @ 12:07:47 Sessions 3 Manual Loads 0 Difficulty Rogue Special Mode None Game No. 30 Rogue 30 Adventurer 0 Explorer 0 Win Type - Total 0 Types 0/0/0/0/0/0/0/0/0 Lore% 3 Gallery% 19 Achievement% 14 Wizard Run 0 Options --------- Layout 1 ASCII 0 Keyboard 0 Movement Numpad Keybinds 0 Fullscreen 1 Font 24/Smallcaps Map View 50x35 Zoom Use 0% Tactical HUD 1 Map Filters NONE Filters NONE Steam 1 RUN: 09043278-7981-49da-b386-4a01c7942d5a